Workbook

Sheet INFO
B1: FULLY AUTOMATIC ALL EXAMS SITTING PLAN में आपका स्वागत है I | Y1: jk/kkLokeh
B2: सभी गुरुजनों को SMART TEACHER बनाने के लिए समर्पित
A3: INSTRUCTIONS FOR FULLY AUTOMATIC SITTING PLAN
A4: 1 | B4: यह प्रोग्राम सभी प्रकार की परीक्षाओं हेतु बैठक व्यवस्था के लिए तैयार किया गया है
A5: 2 | B5: इस प्रोग्राम में आप mater data sheet में pink shell में entry करे I
A6: 3 | B6: sitting plan sheet में सर्वप्रथम विषय,परीक्षा कक्ष क्रमांक,विद्यालय का चयन,प्रत्येक कक्ष में पंक्तिवर विद्यार्थियों का चयन यानि grey shell में entry करे
A7: 4 | B7: sitting room sheet में केवल परीक्षा कक्ष का चुनाव करे ,एंव यदि पांचवी पंक्ति में विद्यार्थी एक ही विद्यालय के तो मैन्युअल बदले !
A8: 5 | B8: AC ROLL FOR BANK SHEET में परीक्षा में ड्यूटी में लगे कर्मचारियों का भुगतान पत्र बना सकते हें !
A9: 6 | B9: आशा है की यह प्रोग्राम आपके लिए उपयोगी साबित होगा इसी आशा के साथ मेरे नए प्रोग्राम EXCEL DICTIONARY का इंतजार करे-------------------
A10: 7
A11: 8
A12: 9
A13: 10
A14: घर पर रहे,मास्क का प्रयोग करे | F14: nksLrks vf/kd tkudkjh gsrq esjk ;wV;wc psuy ns[ks vkSj ykbd vkSj lCldzkbc t#j djs rkfd vkus okyk izksxke vki rd igWqp ldsA | P14: https://youtu.be/3yHQVnwH1W0 | V14: Like subscribe t#j djs
A15: 1 | B15: OLD TAX REGIME sheet esa gkml yksu C;kt ,ao vU; vk; rFkk Chapter VI A Deduction dh jkf'k dk bUnzkt djs tks lsy vuykWd gSA
A16: 2 | B16: OLD TAX REGIME sheet esa dsoy vuykWd 'khV esa gh bUnzkt djs vU; osru ls dVus okyh jkf'k Lor vk tk,xh A
A17: 3 | B17: bl 'khV esa Refundable amount (+) esa gS rks vkidks jkf'k okil feysxh vU;Fkk vkidk VSDl cdk;k gSA
A18: INSTRUCTION FOR NEW TAX REGIME
A19: 1 | B19: NEW TAX REGIME sheet esa 70 izdkj dh dVksfr ls oafpr gksuk iMsXkk dsoy NPS dh DVkSfr vf/kdre 50000 dh NwV ns; gS vU; lsy ykWd gSA
A20: INSTRUCTION FOR PAY SLIP SHEET
A21: 1 | B21: "PAY SLIP sheet" esa vki ftl ekg dh is Lyhi ysuh gks ml ekg dk p;u djs vki dh is Lyhi rS;kj gS ckdh lsy ykWd gSA A4 page size ( margin full page)
A22: INSTRUCTION FOR PRINT
A23: 1 | B23: lHkh 'khV A4 page size ij Margin full page esa lsV fd;k gqvk gS vki fizV ys ldrs gsA 7pay matrix chart sheet legal page ls print fudky ldrs gSA
A24: bl odZcqd dks jktLFkku ds f'k{kk foHkkx ds deZpkfj;ksa dh lqfo/kk ds fy, rS;kj fd;k gqvk gS A blesa lHkh x.kuk ,ao ladyu dks iw.kZ lko/kkuh ds lkFk iz;ksx fd;k gSa exj fdlh izdkj dh =qfV ,ao pwd ds fy;s rS;kjdRrkZ ftEesnkj ugha gksxkA vk;dj foHkkx ds vkns'kkuqlkj x.kuk ,ao fu;e gh ekU; gksxs A
A25: FOR MORE MY EXCEL SOFTWARE & EDU.NEWS --- | D25: FOR MORE MY EXCEL SOFTWARE & EDU.NEWS --- | H25: https://shalasugam.com/vijay-kumar-excel-sheet-expert/ | K25: https://www.ashwinisharma.com/p/vijay-kumar-excel-sheet-expert.html | Q25: https://rajsevak.com/vijay-kumar-prajapat-software/
D26: दोस्तों यह प्रोग्राम आपको कैसा लगा 1 विजय कुमार प्रजापत अध्यापक राजकीय उच्च माध्यमिक विद्यालय आलनियावास तहसील &रियां बड़ी जिला &नागौर आपका स्नेह मिलता रहे ! इस प्रोग्राम को बनाने में काफी सावधानी बरती है फिर भी किसी प्रकार की समस्या एंव सुझाव हेतु मेरी इमेल आईडी पर सम्पर्क करे मेरे प्रेरणा स्रोत&1-श्री अश्विनी कुमार 2- श्री किशन लाल 3- श्री हीरालाल 4- श्री विष्णु शर्मा 5- श्री अभिषेक शर्मा और आप
A30: Keep Your Face Always In Sunshine | G30: gupskalani@gmail.com

Sheet MASTER
B2: परीक्षा केन्द्र का नाम | D2: jktdh; mPp ek/;fed fo|ky; vkyfu;kokl ftyk& ukXkkSj
B3: केन्द्राध्यक्ष का नाम | D3: DINESH KUMAR OJHA | H3: मोबाईल नम्बर | J3: 0
B4: उपकेन्द्राध्यक्ष का नाम | D4: VIJAY KUMAR PRAJAPAT | H4: मोबाईल नम्बर | J4: 1 | V4: हिंदी
B5: बोर्ड/स्थानीय परीक्षाप्रभारी का नाम | D5: RAMNIWAS | H5: मोबाईल नम्बर | J5: 2 | R5: उच्च माध्यमिक परीक्षा | V5: हिंदी अनिवार्य
B6: बोर्ड परीक्षा केंद्र क्रमांक | D6: 119050 | H6: विषय | J6: राजनैतिक विज्ञान | R6: माध्यमिक परीक्षा | V6: हिंदी साहित्य
B7: परीक्षा का प्रकार व वर्ष | D7: उच्च माध्यमिक परीक्षा | G7: 2021 | H7: दिनांक | J7: 2022-05-25 | R7: प्रारंभिक पूर्णता परीक्षा | V7: ENGLISH
B8: क्र-सं- | C8: विद्यालय का कोड या नाम | D8: विद्यालयवार अनुक्रमांक | H8: योग | I8: विद्यालय का बोर्ड क्रमांक | V8: ENGLISH COMPULSARY
B9: 1 | C9: GSSS ALNIYAWAS1 | D9: 100 | F9: से | G9: 180 | H9: =IF(O9>0,O9+1,0) -> 81 | I9: 119050 | O9: =G9-D9 -> 80 | R9: स्थानीय परीक्षा | V9: ENGLISH LITERATURE
B10: 2 | C10: GSSS KOD | D10: 200 | F10: से | G10: 240 | H10: =IF(O10>0,O10+1,0) -> 41 | I10: 119051 | O10: =G10-D10 -> 40 | V10: इतिहास
B11: 3 | C11: GSSS LADPURA | D11: 300 | F11: से | G11: 330 | H11: =IF(O11>0,O11+1,0) -> 31 | I11: 119052 | O11: 30 | R11: BOARD EXAM | S11: 2021 | V11: राजनैतिक विज्ञान
B12: 4 | C12: GSSS BIJATHAL | D12: 400 | F12: से | G12: 435 | H12: =IF(O12>0,O12+1,0) -> 36 | I12: 119053 | O12: 35 | R12: LOCAL EXAM | S12: 2022 | V12: भूगोल
B13: 5 | C13: SHAKBHARI | D13: 500 | F13: से | G13: 515 | H13: 16 | I13: 119054 | O13: 15 | S13: 2023 | V13: अर्थशास्त्र
B14: 6 | D14: 0 | F14: से | G14: 0 | H14: 0 | I14: 119055 | O14: 0 | S14: 2024 | V14: संस्कृत
B15: 7 | D15: 0 | F15: से | G15: 0 | H15: 0 | I15: 119056 | O15: 0 | S15: 2025 | V15: भोतिक विज्ञानं
B16: कुल परीक्षार्थी संख्या | H16: =SUM(H9:H15) -> 205 | S16: 2026 | V16: रसायन विज्ञानं
V17: जीव विज्ञान
V18: गणित
V19: सामाजिक विज्ञान
V20: पर्यावरण अध्ययन
V21: उर्दू
V22: गुजराती
V23: सिन्धी
V24: दर्शन शास्त्र
V25: व्यवसाय अध्ययन
V26: कृषि रसायन विज्ञानं
V27: मनोविज्ञान
V28: लेखाशास्त्र
V29: कृषि जीव विज्ञान
V30: भूविज्ञान
V31: पंजाबी साहित्य
V32: राजस्थानी साहित्य
V33: गृह विज्ञान
V34: लोक प्रशासन
V35: कंठ संगीत
V36: नृत्य कत्थक
V37: वाद्य संगीत
V38: सितार
V39: सरोद
V40: वायलिन
V41: बांसुरी
V42: गिटार
V43: सामान्य विज्ञान
V44: टंकण लिपि अंग्रेजी
V45: टंकण लिपि हिंदी
V46: सूचना प्रोद्योगिकीऔर प्रोग्रामिंग
V47: सोंदर्य एंव स्वास्थ्य
V48: सूचना प्रोद्योगिकी
J74: =SUM(J66:J73) -> 0

Sheet SITTING PLAN
B2: =MASTER!B2 -> परीक्षा केन्द्र का नाम | D2: =MASTER!D2 -> jktdh; mPp ek/;fed fo|ky; vkyfu;kokl ftyk& ukXkkSj
D3: =MASTER!D7 -> उच्च माध्यमिक परीक्षा | E3: =MASTER!G7 -> 2021 | I3: कुल परीक्षार्थी | K3: =MASTER!H16 -> 205
B4: समेकित परीक्षा कक्षवार बैठक व्यवस्था चार्ट | I4: कुल वीक्षक | K4: =SUM(L9:L83) -> 9
B5: दिनांक | C5: =MASTER!J7 -> 2022-05-25 | E5: विषय | G5: =MASTER!J6 -> राजनैतिक विज्ञान
B6: केन्द्राधीक्षक | C6: 1 | D6: परीक्षा प्रभारी | E6: 1 | F6: सुपर वाईजर | I6: =IF(K4<=6,1,IF(K4<=12,2,3)) -> 2
B7: उपकेन्द्राधीक्षक | C7: 1 | D7: पेपर को ऑर्डिनेटर | E7: 1 | F7: कुल वीक्षक | I7: =K4 -> 9
B8: परीक्षा कक्ष क्रमांक | C8: विद्यालय का चुनाव यहाँ से करे | D8: विद्यालय का नाम | E8: विद्यालयवार अनुक्रमांक | H8: IF NSO | I8: पंक्तिवार परीक्षार्थी की संख्या | J8: कुल परीक्षार्थी की संख्या कक्षावार | K8: कुल परीक्षार्थी की संख्या | L8: वीक्षक संख्या | P8: HALL 1 | Q8: 1 | R8: =MASTER!C9 -> GSSS ALNIYAWAS1 | S8: =MASTER!D9 -> 100 | T8: =MASTER!G9 -> 180 | U8: =MASTER!H9 -> 81 | W8: हिंदी
B9: HALL 1 | C9: 1 | D9: =IF($C9=1,$R$8,IF($C9=2,$R$9,IF($C9=3,$R$10,IF($C9=4,$R$11,IF($C9=5,$R$12,IF($C9=6,$R$13,IF($C9=7,$R$14," "))))))) -> GSSS ALNIYAWAS1 | E9: =IF($D9=MASTER!$C$9,MASTER!$D$9,IF($D9=MASTER!$C$10,MASTER!$D$10,IF($D9=MASTER!$C$11,MASTER!$D$11,IF($D9=MASTER!$C$12,MASTER!$D$12,IF($D9=MASTER!$C$13,MASTER!$D$13,IF($D9=MASTER!$C$14,MASTER!$D$14,IF($D9=MASTER!$C$15,MASTER!$D$15," "))))))) -> 100 | F9: से | G9: =IF(AA9=" "," ",IF(AA9<MASTER!G9,AA9,MASTER!G9)) -> 117 | I9: 18 | J9: =SUM(I9:I13) -> 45 | K9: =SUM(J9:J13) -> 45 | L9: =IF(J9=0," ",IF(J9<=30,1,IF(J9>30,2))) -> 2 | M9: =IF($D9=" "," ",IF($D9=$R8,$U8-$I9,IF($D9=$R9,$U9-$I9,IF($D9=$R10,$U10-$I9,IF($D9=$R11,$U11-$I9,IF($D9=$R12,$U12-$I9,IF($D9=$R13,$U13-$I9,IF($D9=$R14,$U14-$I9)))))))) -> 63 | P9: HALL 2 | Q9: 2 | R9: =MASTER!C10 -> GSSS KOD | S9: =MASTER!D10 -> 200 | T9: =MASTER!G10 -> 240 | U9: =MASTER!H10 -> 41 | W9: हिंदी अनिवार्य | X9: =IF(Y9=" "," ",(Y9-I9)) -> 63 | Y9: =IF(D9=" "," ",VLOOKUP(D9,MASTER!$C$9:$K$15,6,0)) -> 81 | AA9: =IF(D9=" "," ",E9+I9+H9-1) -> 117
C10: 2 | D10: =IF($C10=1,$R$8,IF($C10=2,$R$9,IF($C10=3,$R$10,IF($C10=4,$R$11,IF($C10=5,$R$12,IF($C10=6,$R$13,IF($C10=7,$R$14," "))))))) -> GSSS KOD | E10: =IF($D10=MASTER!$C$9,MASTER!$D$9,IF($D10=MASTER!$C$10,MASTER!$D$10,IF($D10=MASTER!$C$11,MASTER!$D$11,IF($D10=MASTER!$C$12,MASTER!$D$12,IF($D10=MASTER!$C$13,MASTER!$D$13,IF($D10=MASTER!$C$14,MASTER!$D$14,IF($D10=MASTER!$C$15,MASTER!$D$15," "))))))) -> 200 | F10: से | G10: =IF(AA10=" "," ",IF(AA10<MASTER!G10,AA10,MASTER!G10)) -> 208 | I10: 9 | M10: =IF($D10=" "," ",IF($D10=$R9,$U9-$I10,IF($D10=$R10,$U10-$I10,IF($D10=$R11,$U11-$I10,IF($D10=$R12,$U12-$I10,IF($D10=$R13,$U13-$I10,IF($D10=$R14,$U14-$I10,IF($D10=$R15,$U15-$I10)))))))) -> 32 | P10: HALL 3 | Q10: 3 | R10: =MASTER!C11 -> GSSS LADPURA | S10: =MASTER!D11 -> 300 | T10: =MASTER!G11 -> 330 | U10: =MASTER!H11 -> 31 | W10: हिंदी साहित्य | X10: =IF(Y10=" "," ",(Y10-I10)) -> 32 | Y10: =IF(D10=" "," ",VLOOKUP(D10,MASTER!$C$9:$K$15,6,0)) -> 41 | AA10: =IF(D10=" "," ",E10+I10+H10-1) -> 208
C11: 3 | D11: GSSS LADPURA | E11: =IF($D11=MASTER!$C$9,MASTER!$D$9,IF($D11=MASTER!$C$10,MASTER!$D$10,IF($D11=MASTER!$C$11,MASTER!$D$11,IF($D11=MASTER!$C$12,MASTER!$D$12,IF($D11=MASTER!$C$13,MASTER!$D$13,IF($D11=MASTER!$C$14,MASTER!$D$14,IF($D11=MASTER!$C$15,MASTER!$D$15," "))))))) -> 300 | F11: से | G11: =IF(AA11=" "," ",IF(AA11<MASTER!G11,AA11,MASTER!G11)) -> 308 | H11: 0 | I11: 9 | M11: 22 | P11: LAB | Q11: 4 | R11: =MASTER!C12 -> GSSS BIJATHAL | S11: =MASTER!D12 -> 400 | T11: =MASTER!G12 -> 435 | U11: =MASTER!H12 -> 36 | W11: ENGLISH | X11: 22 | Y11: =IF(D11=" "," ",VLOOKUP(D11,MASTER!$C$9:$K$15,6,0)) -> 31 | AA11: 308
C12: 4 | D12: GSSS BIJATHAL | E12: =IF($D12=MASTER!$C$9,MASTER!$D$9,IF($D12=MASTER!$C$10,MASTER!$D$10,IF($D12=MASTER!$C$11,MASTER!$D$11,IF($D12=MASTER!$C$12,MASTER!$D$12,IF($D12=MASTER!$C$13,MASTER!$D$13,IF($D12=MASTER!$C$14,MASTER!$D$14,IF($D12=MASTER!$C$15,MASTER!$D$15," "))))))) -> 400 | F12: से | G12: =IF(AA12=" "," ",IF(AA12<MASTER!G12,AA12,MASTER!G12)) -> 408 | I12: 9 | M12: 27 | Q12: 5 | R12: =MASTER!C13 -> SHAKBHARI | S12: =MASTER!D13 -> 500 | T12: =MASTER!G13 -> 515 | U12: =MASTER!H13 -> 16 | W12: ENGLISH COMPULSARY | X12: 27 | Y12: =IF(D12=" "," ",VLOOKUP(D12,MASTER!$C$9:$K$15,6,0)) -> 36 | AA12: 408
E13: =IF($D13=MASTER!$C$9,MASTER!$D$9,IF($D13=MASTER!$C$10,MASTER!$D$10,IF($D13=MASTER!$C$11,MASTER!$D$11,IF($D13=MASTER!$C$12,MASTER!$D$12,IF($D13=MASTER!$C$13,MASTER!$D$13,IF($D13=MASTER!$C$14,MASTER!$D$14,IF($D13=MASTER!$C$15,MASTER!$D$15," "))))))) ->  | F13: से | G13: =IF(AA13=" "," ",IF(AA13<MASTER!G13,AA13,MASTER!G13)) ->  | P13: 1 | Q13: 6 | R13: =MASTER!C14 -> 0 | S13: =MASTER!D14 -> 0 | T13: =MASTER!G14 -> 0 | U13: =MASTER!H14 -> 0 | W13: ENGLISH LITERATURE | Y13: =IF(D13=" "," ",VLOOKUP(D13,MASTER!$C$9:$K$15,6,0)) -> 
B14: HALL 2 | C14: 1 | D14: GSSS ALNIYAWAS1 | E14: =IF($D14=" "," ",IF(D14="FALSE",MATCH($R$8:$R$14,$S$8:$S$14),IF($D14=$D9,$G9+1,IF($D14=$D10,$G10+1,IF($D14=$D11,$G11+1,IF($D14=$D12,$G12+1,IF($D14=$D13,$G13+1," "))))))) -> 118 | F14: से | G14: =IF(D14=" "," ",E14+I14+H14-1) -> 135 | I14: 18 | J14: =SUM(I14:I18) -> 45 | K14: =IF(J9=0," ",K9+J14) -> 90 | L14: =IF(J14=0," ",IF(J14<=30,1,IF(J14>30,2))) -> 2 | M14: =IF($D14=" "," ",IF($D14=$D9,$M9-$I14,IF($D14=$D10,$M10-$I14,IF($D14=$D11,$M11-$I14,IF($D14=$D12,$M12-$I14,IF($D14=$D13,$M14-$I14)))))) -> 45 | P14: 2 | R14: =MASTER!C15 -> 0 | S14: =MASTER!D15 -> 0 | T14: =MASTER!G15 -> 0 | U14: =MASTER!H15 -> 0 | W14: इतिहास | Y14: =IF(D14=" "," ",VLOOKUP(D14,MASTER!$C$9:$K$15,6,0)) -> 81 | AA14: 135
C15: 2 | D15: GSSS KOD | E15: =IF($D15=" "," ",IF(D15="FALSE",MATCH($R$8:$R$14,$S$8:$S$14),IF($D15=$D10,$G10+1,IF($D15=$D11,$G11+1,IF($D15=$D12,$G12+1,IF($D15=$D13,$G13+1,IF($D15=$D14,$G14+1," "))))))) -> 209 | F15: से | G15: =IF(D15=" "," ",E15+I15+H15-1) -> 217 | I15: 9 | M15: =IF($D15=" "," ",IF($D15=$D10,$M10-$I15,IF($D15=$D11,$M11-$I15,IF($D15=$D12,$M12-$I15,IF($D15=$D13,$M13-$I15,IF($D15=$D14,$M15-$I15)))))) -> 23 | P15: 3 | Q15: 7 | W15: राजनैतिक विज्ञान | Y15: =IF(D15=" "," ",VLOOKUP(D15,MASTER!$C$9:$K$15,6,0)) -> 41 | AA15: 217
C16: 3 | D16: GSSS LADPURA | E16: 309 | F16: से | G16: 317 | H16: 0 | I16: 9 | M16: 13 | P16: 4 | Q16: 8 | W16: भूगोल | Y16: =IF(D16=" "," ",VLOOKUP(D16,MASTER!$C$9:$K$15,6,0)) -> 31 | AA16: 317
C17: 4 | D17: GSSS BIJATHAL | E17: 409 | F17: से | G17: 417 | I17: 9 | M17: 18 | P17: 5 | Q17: 9 | W17: अर्थशास्त्र | Y17: =IF(D17=" "," ",VLOOKUP(D17,MASTER!$C$9:$K$15,6,0)) -> 36 | AA17: 417
F18: से | P18: 6 | Q18: 10 | Y18: =IF(D18=" "," ",VLOOKUP(D18,MASTER!$C$9:$K$15,6,0)) -> 
B19: HALL 3 | C19: 1 | D19: GSSS ALNIYAWAS1 | E19: =IF($D19=" "," ",IF($D19=$D14,$G14+1,IF($D19=$D15,$G15+1,IF($D19=$D16,$G16+1,IF($D19=$D17,$G17+1,IF($D19=$D18,$G18+1," ")))))) -> 136 | F19: से | G19: 153 | I19: 18 | J19: =SUM(I19:I23) -> 45 | K19: =IF(J14=0," ",K14+J19) -> 135 | L19: =IF(J19=0," ",IF(J19<=30,1,IF(J19>30,2))) -> 2 | M19: =IF($D19=" "," ",IF($D19=$D14,$M14-$I19,IF($D19=$D15,$M15-$I19,IF($D19=$D16,$M16-$I19,IF($D19=$D17,$M17-$I19,IF($D19=$D18,$M19-$I19)))))) -> 27 | P19: 7 | Q19: 11 | Y19: =IF(D19=" "," ",VLOOKUP(D19,MASTER!$C$9:$K$15,6,0)) -> 81 | AA19: 153
C20: 2 | D20: GSSS KOD | E20: 218 | F20: से | G20: 226 | I20: 9 | M20: 14 | P20: 8 | Q20: 12 | Y20: =IF(D20=" "," ",VLOOKUP(D20,MASTER!$C$9:$K$15,6,0)) -> 41 | AA20: 226
C21: 3 | D21: GSSS LADPURA | E21: 318 | F21: से | G21: 326 | I21: 9 | M21: 4 | P21: 9 | Q21: 13 | Y21: =IF(D21=" "," ",VLOOKUP(D21,MASTER!$C$9:$K$15,6,0)) -> 31 | AA21: 326
C22: 4 | D22: GSSS BIJATHAL | E22: 418 | F22: से | G22: 426 | I22: 9 | M22: 9 | P22: 10 | Q22: 14 | Y22: =IF(D22=" "," ",VLOOKUP(D22,MASTER!$C$9:$K$15,6,0)) -> 36 | AA22: 426
F23: से | P23: 11 | Q23: 15 | Y23: =IF(D23=" "," ",VLOOKUP(D23,MASTER!$C$9:$K$15,6,0)) -> 
B24: 1 | C24: 1 | D24: GSSS ALNIYAWAS1 | E24: 154 | F24: से | G24: 159 | I24: 6 | J24: =SUM(I24:I28) -> 22 | K24: =IF(J19=0," ",K19+J24) -> 157 | L24: =IF(J24=0," ",IF(J24<=30,1,IF(J24>30,2))) -> 1 | M24: 21 | P24: 12 | Q24: 16 | Y24: =IF(D24=" "," ",VLOOKUP(D24,MASTER!$C$9:$K$15,6,0)) -> 81 | AA24: 159
C25: 2 | D25: GSSS KOD | E25: 227 | F25: से | G25: 232 | I25: 6 | M25: 8 | P25: 13 | Q25: 17 | Y25: =IF(D25=" "," ",VLOOKUP(D25,MASTER!$C$9:$K$15,6,0)) -> 41 | AA25: 232
C26: 3 | D26: GSSS LADPURA | E26: 327 | F26: से | G26: 330 | I26: 4 | M26: 0 | P26: 14 | Q26: 18 | Y26: =IF(D26=" "," ",VLOOKUP(D26,MASTER!$C$9:$K$15,6,0)) -> 31 | AA26: 330
C27: 4 | D27: GSSS BIJATHAL | E27: 427 | F27: से | G27: 432 | I27: 6 | M27: 3 | P27: 15 | Q27: 19 | Y27: =IF(D27=" "," ",VLOOKUP(D27,MASTER!$C$9:$K$15,6,0)) -> 36 | AA27: 432
F28: से | P28: 16 | Q28: 20 | Y28: =IF(D28=" "," ",VLOOKUP(D28,MASTER!$C$9:$K$15,6,0)) -> 
B29: 2 | C29: 1 | D29: GSSS ALNIYAWAS1 | E29: 160 | F29: से | G29: 165 | I29: 6 | J29: =SUM(I29:I33) -> 24 | K29: =IF(J24=0," ",K24+J29) -> 181 | L29: =IF(J29=0," ",IF(J29<=30,1,IF(J29>30,2))) -> 1 | M29: 15 | P29: 17 | Q29: 21 | Y29: =IF(D29=" "," ",VLOOKUP(D29,MASTER!$C$9:$K$15,6,0)) -> 81 | AA29: 165
C30: 2 | D30: GSSS KOD | E30: 233 | F30: से | G30: 238 | I30: 6 | M30: 2 | P30: 18 | Q30: 22 | Y30: =IF(D30=" "," ",VLOOKUP(D30,MASTER!$C$9:$K$15,6,0)) -> 41 | AA30: 238
C31: 5 | D31: SHAKBHARI | E31: 500 | F31: से | G31: 508 | I31: 9 | M31: FALSE | P31: 19 | Q31: 23 | Y31: =IF(D31=" "," ",VLOOKUP(D31,MASTER!$C$9:$K$15,6,0)) -> 16 | AA31: 508
C32: 4 | D32: GSSS BIJATHAL | E32: 433 | F32: से | G32: 435 | I32: 3 | M32: 0 | Q32: 24 | Y32: =IF(D32=" "," ",VLOOKUP(D32,MASTER!$C$9:$K$15,6,0)) -> 36 | AA32: 435
F33: से | M33: 5 | Y33: =IF(D33=" "," ",VLOOKUP(D33,MASTER!$C$9:$K$15,6,0)) -> 
B34: 3 | C34: 1 | D34: GSSS ALNIYAWAS1 | E34: 166 | F34: से | G34: 171 | I34: 6 | J34: 24 | K34: =IF(J29=0," ",K29+J34) -> 205 | L34: =IF(J34=0," ",IF(J34<=30,1,IF(J34>30,2))) -> 1 | M34: 9 | Y34: =IF(D34=" "," ",VLOOKUP(D34,MASTER!$C$9:$K$15,6,0)) -> 81 | AA34: 171
C35: 2 | D35: GSSS KOD | E35: 239 | F35: से | G35: 240 | I35: 2 | M35: 0 | Y35: =IF(D35=" "," ",VLOOKUP(D35,MASTER!$C$9:$K$15,6,0)) -> 41 | AA35: 240
C36: 1 | D36: GSSS ALNIYAWAS1 | E36: 172 | F36: से | G36: 180 | I36: 9 | M36: 0 | Y36: =IF(D36=" "," ",VLOOKUP(D36,MASTER!$C$9:$K$15,6,0)) -> 81 | AA36: 180
C37: 5 | D37: SHAKBHARI | E37: 509 | F37: से | G37: 515 | I37: 7 | M37: FALSE | Y37: =IF(D37=" "," ",VLOOKUP(D37,MASTER!$C$9:$K$15,6,0)) -> 16 | AA37: 515
F38: से | Y38: =IF(D38=" "," ",VLOOKUP(D38,MASTER!$C$9:$K$15,6,0)) -> 
F39: से | J39: =SUM(I39:I43) -> 0 | K39: =IF(J39=0," ",K34+J39) ->  | L39: =IF(J39=0," ",IF(J39<=30,1,IF(J39>30,2))) ->  | Y39: =IF(D39=" "," ",VLOOKUP(D39,MASTER!$C$9:$K$15,6,0)) -> 
F40: से | Y40: =IF(D40=" "," ",VLOOKUP(D40,MASTER!$C$9:$K$15,6,0)) -> 
F41: से | Y41: =IF(D41=" "," ",VLOOKUP(D41,MASTER!$C$9:$K$15,6,0)) -> 
F42: से | Y42: =IF(D42=" "," ",VLOOKUP(D42,MASTER!$C$9:$K$15,6,0)) -> 
F43: से | Y43: =IF(D43=" "," ",VLOOKUP(D43,MASTER!$C$9:$K$15,6,0)) -> 
F44: से | J44: =SUM(I44:I48) -> 0 | K44: =IF(J44=0," ",K39+J44) ->  | L44: =IF(J44=0," ",IF(J44<=30,1,IF(J44>30,2))) ->  | Y44: =IF(D44=" "," ",VLOOKUP(D44,MASTER!$C$9:$K$15,6,0)) -> 
F45: से | Y45: =IF(D45=" "," ",VLOOKUP(D45,MASTER!$C$9:$K$15,6,0)) -> 
F46: से | Y46: =IF(D46=" "," ",VLOOKUP(D46,MASTER!$C$9:$K$15,6,0)) -> 
F47: से | Y47: =IF(D47=" "," ",VLOOKUP(D47,MASTER!$C$9:$K$15,6,0)) -> 
F48: से | Y48: =IF(D48=" "," ",VLOOKUP(D48,MASTER!$C$9:$K$15,6,0)) -> 
F49: से | J49: =SUM(I49:I53) -> 0 | K49: =IF(J49=0," ",K44+J49) ->  | L49: =IF(J49=0," ",IF(J49<=30,1,IF(J49>30,2))) ->  | Y49: =IF(D49=" "," ",VLOOKUP(D49,MASTER!$C$9:$K$15,6,0)) -> 
F50: से | Y50: =IF(D50=" "," ",VLOOKUP(D50,MASTER!$C$9:$K$15,6,0)) -> 
F51: से | Y51: =IF(D51=" "," ",VLOOKUP(D51,MASTER!$C$9:$K$15,6,0)) -> 
F52: से | M52: 41 | Y52: =IF(D52=" "," ",VLOOKUP(D52,MASTER!$C$9:$K$15,6,0)) -> 
F53: से | Y53: =IF(D53=" "," ",VLOOKUP(D53,MASTER!$C$9:$K$15,6,0)) -> 
F54: से | J54: =SUM(I54:I58) -> 0 | K54: =IF(J54=0," ",K49+J54) ->  | L54: =IF(J54=0," ",IF(J54<=30,1,IF(J54>30,2))) ->  | M54: 32 | Y54: =IF(D54=" "," ",VLOOKUP(D54,MASTER!$C$9:$K$15,6,0)) -> 
F55: से | M55: 23 | Y55: =IF(D55=" "," ",VLOOKUP(D55,MASTER!$C$9:$K$15,6,0)) -> 
F56: से | M56: 14 | Y56: =IF(D56=" "," ",VLOOKUP(D56,MASTER!$C$9:$K$15,6,0)) -> 
F57: से | M57: 5 | Y57: =IF(D57=" "," ",VLOOKUP(D57,MASTER!$C$9:$K$15,6,0)) -> 
F58: से | Y58: =IF(D58=" "," ",VLOOKUP(D58,MASTER!$C$9:$K$15,6,0)) -> 
F59: से | J59: =SUM(I59:I63) -> 0 | K59: =IF(J59=0," ",K54+J59) ->  | L59: =IF(J59=0," ",IF(J59<=30,1,IF(J59>30,2))) ->  | Y59: =IF(D59=" "," ",VLOOKUP(D59,MASTER!$C$9:$K$15,6,0)) -> 
F60: से | Y60: =IF(D60=" "," ",VLOOKUP(D60,MASTER!$C$9:$K$15,6,0)) -> 
F61: से | Y61: =IF(D61=" "," ",VLOOKUP(D61,MASTER!$C$9:$K$15,6,0)) -> 
F62: से | Y62: =IF(D62=" "," ",VLOOKUP(D62,MASTER!$C$9:$K$15,6,0)) -> 
F63: से | Y63: =IF(D63=" "," ",VLOOKUP(D63,MASTER!$C$9:$K$15,6,0)) -> 
F64: से | J64: =SUM(I64:I68) -> 0 | K64: =IF(J64=0," ",K59+J64) ->  | L64: =IF(J64=0," ",IF(J64<=30,1,IF(J64>30,2))) ->  | Y64: =IF(D64=" "," ",VLOOKUP(D64,MASTER!$C$9:$K$15,6,0)) -> 
F65: से | Y65: =IF(D65=" "," ",VLOOKUP(D65,MASTER!$C$9:$K$15,6,0)) -> 
F66: से | Y66: =IF(D66=" "," ",VLOOKUP(D66,MASTER!$C$9:$K$15,6,0)) -> 
F67: से | Y67: =IF(D67=" "," ",VLOOKUP(D67,MASTER!$C$9:$K$15,6,0)) -> 
F68: से | Y68: =IF(D68=" "," ",VLOOKUP(D68,MASTER!$C$9:$K$15,6,0)) -> 
F69: से | J69: =SUM(I69:I73) -> 0 | K69: =IF(J69=0," ",K64+J69) ->  | L69: =IF(J69=0," ",IF(J69<=30,1,IF(J69>30,2))) ->  | Y69: =IF(D69=" "," ",VLOOKUP(D69,MASTER!$C$9:$K$15,6,0)) -> 
F70: से | Y70: =IF(D70=" "," ",VLOOKUP(D70,MASTER!$C$9:$K$15,6,0)) -> 
F71: से | Y71: =IF(D71=" "," ",VLOOKUP(D71,MASTER!$C$9:$K$15,6,0)) -> 
F72: से | Y72: =IF(D72=" "," ",VLOOKUP(D72,MASTER!$C$9:$K$15,6,0)) -> 
F73: से | Y73: =IF(D73=" "," ",VLOOKUP(D73,MASTER!$C$9:$K$15,6,0)) -> 
D74: =IF($C74=1,$R$8,IF($C74=2,$R$9,IF($C74=3,$R$10,IF($C74=4,$R$11,IF($C74=5,$R$12,IF($C74=6,$R$13,IF($C74=7,$R$14," "))))))) ->  | F74: से | J74: =SUM(I74:I78) -> 0 | K74: =IF(J74=0," ",K69+J74) ->  | L74: =IF(J74=0," ",IF(J74<=30,1,IF(J74>30,2))) ->  | Y74: =IF(D74=" "," ",VLOOKUP(D74,MASTER!$C$9:$K$15,6,0)) ->  | AA74: =IF(D74=" "," ",E74+I74+H74-1) -> 
F75: से | Y75: =IF(D75=" "," ",VLOOKUP(D75,MASTER!$C$9:$K$15,6,0)) -> 
F76: से | Y76: =IF(D76=" "," ",VLOOKUP(D76,MASTER!$C$9:$K$15,6,0)) -> 
F77: से | Y77: =IF(D77=" "," ",VLOOKUP(D77,MASTER!$C$9:$K$15,6,0)) -> 
F78: से | Y78: =IF(D78=" "," ",VLOOKUP(D78,MASTER!$C$9:$K$15,6,0)) -> 
F79: से | G79: =IF(D79=" "," ",E79+I79+H79-1) ->  | J79: =SUM(I79:I83) -> 0 | K79: =IF(J79=0," ",K74+J79) ->  | L79: =IF(J79=0," ",IF(J79<=30,1,IF(J79>30,2))) ->  | M79: =IF($D79=" "," ",IF($D79=$D74,$M74-$I79,IF($D79=$D75,$M75-$I79,IF($D79=$D76,$M76-$I79,IF($D79=$D77,$M77-$I79,IF($D79=$D78,$M79-$I79)))))) ->  | Y79: =IF(D79=" "," ",VLOOKUP(D79,MASTER!$C$9:$K$15,6,0)) -> 
F80: से | Y80: =IF(D80=" "," ",VLOOKUP(D80,MASTER!$C$9:$K$15,6,0)) -> 
F81: से | Y81: =IF(D81=" "," ",VLOOKUP(D81,MASTER!$C$9:$K$15,6,0)) -> 
F82: से | Y82: =IF(D82=" "," ",VLOOKUP(D82,MASTER!$C$9:$K$15,6,0)) -> 
F83: से | Y83: =IF(D83=" "," ",VLOOKUP(D83,MASTER!$C$9:$K$15,6,0)) -> 
B84: 13 | F84: से | G84: =IF(D84=" "," ",E84+I84+H84-1) ->  | J84: =SUM(I84:I88) -> 0 | K84: =IF(J84=0," ",K79+J84) ->  | L84: =IF(J84=0," ",IF(J84<=30,1,IF(J84>30,2))) -> 
E85: =IF($D85=" "," ",IF($D85=$D80,$G80+1,IF($D85=$D81,$G81+1,IF($D85=$D82,$G82+1,IF($D85=$D83,$G83+1,IF($D85=$D84,$G84+1," ")))))) ->  | F85: से
F86: से
F87: से
F88: से

Sheet SITTING ROOM
B2: =MASTER!D7 -> उच्च माध्यमिक परीक्षा | E2: =MASTER!G7 -> 2021 | J2: HALL 1 | K2: RO
B3: बैठक व्यवस्था | J3: HALL 2
B4: ='SITTING PLAN'!B8 -> परीक्षा कक्ष क्रमांक | D4: 3 | E4: =MASTER!B6 -> बोर्ड परीक्षा केंद्र क्रमांक | F4: =MASTER!D6 -> 119050 | J4: HALL 3 | L4: 1 | M4: 2 | N4: 3 | O4: 4 | P4: 5 | Q4: 6 | R4: 7 | S4: 8 | T4: 9 | U4: 10 | V4: 11 | W4: 12 | X4: 13 | Y4: 14 | Z4: 15 | AA4: 16
J5: LAB | L5: ='SITTING PLAN'!B9 -> HALL 1 | M5: ='SITTING PLAN'!D9 -> GSSS ALNIYAWAS1 | N5: ='SITTING PLAN'!D10 -> GSSS KOD | O5: ='SITTING PLAN'!D11 -> GSSS LADPURA | P5: ='SITTING PLAN'!D12 -> GSSS BIJATHAL | Q5: ='SITTING PLAN'!D13 ->  | R5: ='SITTING PLAN'!$E9 -> 100 | S5: ='SITTING PLAN'!$E10 -> 200 | T5: ='SITTING PLAN'!$E11 -> 300 | U5: ='SITTING PLAN'!$E12 -> 400 | V5: ='SITTING PLAN'!$E13 ->  | W5: ='SITTING PLAN'!$I$9 -> 18 | X5: ='SITTING PLAN'!$I$10 -> 9 | Y5: ='SITTING PLAN'!$I$11 -> 9 | Z5: ='SITTING PLAN'!$I$12 -> 9 | AA5: ='SITTING PLAN'!$I$13 -> 0
B6: =VLOOKUP($D$4,TIME1,2,0) -> GSSS ALNIYAWAS1 | C6: =VLOOKUP($D$4,TIME1,3,0) -> GSSS KOD | D6: =VLOOKUP($D$4,TIME1,4,0) -> GSSS ALNIYAWAS1 | E6: =VLOOKUP($D$4,TIME1,5,0) -> SHAKBHARI | F6: =VLOOKUP($D$4,TIME1,6,0) ->  | J6: 1 | L6: ='SITTING PLAN'!B14 -> HALL 2 | M6: ='SITTING PLAN'!D14 -> GSSS ALNIYAWAS1 | N6: ='SITTING PLAN'!D15 -> GSSS KOD | O6: ='SITTING PLAN'!D16 -> GSSS LADPURA | P6: ='SITTING PLAN'!D17 -> GSSS BIJATHAL | Q6: ='SITTING PLAN'!D18 ->  | R6: ='SITTING PLAN'!$E14 -> 118 | S6: ='SITTING PLAN'!$E15 -> 209 | T6: ='SITTING PLAN'!$E16 -> 309 | U6: ='SITTING PLAN'!$E17 -> 409 | V6: ='SITTING PLAN'!$E18 ->  | W6: ='SITTING PLAN'!$I14 -> 18 | X6: ='SITTING PLAN'!$I15 -> 9 | Y6: ='SITTING PLAN'!$I16 -> 9 | Z6: ='SITTING PLAN'!$I17 -> 9 | AA6: ='SITTING PLAN'!$I18 -> 0
B7: =VLOOKUP($D$4,$L$5:$W$21,7,0) -> 166 | C7: =VLOOKUP($D$4,$L$5:$W$21,8,0) -> 239 | D7: =VLOOKUP($D$4,$L$5:$W$21,9,0) -> 172 | E7: =VLOOKUP($D$4,$L$5:$W$21,10,0) -> 509 | F7: 109 | J7: 2 | L7: ='SITTING PLAN'!B19 -> HALL 3 | M7: ='SITTING PLAN'!$D19 -> GSSS ALNIYAWAS1 | N7: ='SITTING PLAN'!$D20 -> GSSS KOD | O7: ='SITTING PLAN'!$D21 -> GSSS LADPURA | P7: ='SITTING PLAN'!$D22 -> GSSS BIJATHAL | Q7: ='SITTING PLAN'!$D23 ->  | R7: ='SITTING PLAN'!$E19 -> 136 | S7: ='SITTING PLAN'!$E20 -> 218 | T7: ='SITTING PLAN'!$E21 -> 318 | U7: ='SITTING PLAN'!$E22 -> 418 | V7: ='SITTING PLAN'!$E23 ->  | W7: ='SITTING PLAN'!$I19 -> 18 | X7: ='SITTING PLAN'!$I20 -> 9 | Y7: ='SITTING PLAN'!$I21 -> 9 | Z7: ='SITTING PLAN'!$I22 -> 9 | AA7: ='SITTING PLAN'!$I23 -> 0
B8: =IF(B7=" "," ",IF(B7=$D$26," ",B7+1)) -> 167 | C8: =IF(C7=" "," ",IF(C7=$D$27," ",C7+1)) -> 240 | D8: =IF(D7=" "," ",IF(D7=$D$28," ",D7+1)) -> 173 | E8: =IF(E7=" "," ",IF(E7=$D$29," ",E7+1)) -> 510 | F8: =IF(F7=" "," ",IF(F7=$D$30," ",F7+1)) -> 110 | J8: 3 | L8: ='SITTING PLAN'!B24 -> 1 | M8: ='SITTING PLAN'!$D$24 -> GSSS ALNIYAWAS1 | N8: ='SITTING PLAN'!$D$25 -> GSSS KOD | O8: ='SITTING PLAN'!$D$26 -> GSSS LADPURA | P8: ='SITTING PLAN'!$D$27 -> GSSS BIJATHAL | Q8: ='SITTING PLAN'!$D$28 ->  | R8: ='SITTING PLAN'!$E24 -> 154 | S8: ='SITTING PLAN'!$E25 -> 227 | T8: ='SITTING PLAN'!$E26 -> 327 | U8: ='SITTING PLAN'!$E27 -> 427 | V8: ='SITTING PLAN'!$E28 ->  | W8: ='SITTING PLAN'!I24 -> 6 | X8: ='SITTING PLAN'!I25 -> 6 | Y8: ='SITTING PLAN'!I26 -> 4 | Z8: ='SITTING PLAN'!I27 -> 6 | AA8: ='SITTING PLAN'!I28 -> 0
B9: =IF(B8=" "," ",IF(B8=$D$26," ",B8+1)) -> 168 | C9: =IF(C8=" "," ",IF(C8=$D$27," ",C8+1)) ->  | D9: =IF(D8=" "," ",IF(D8=$D$28," ",D8+1)) -> 174 | E9: =IF(E8=" "," ",IF(E8=$D$29," ",E8+1)) -> 511 | F9: =IF(F8=" "," ",F8+1) -> 111 | J9: 4 | L9: ='SITTING PLAN'!B29 -> 2 | M9: ='SITTING PLAN'!$D$29 -> GSSS ALNIYAWAS1 | N9: ='SITTING PLAN'!$D$30 -> GSSS KOD | O9: ='SITTING PLAN'!$D$31 -> SHAKBHARI | P9: ='SITTING PLAN'!$D$32 -> GSSS BIJATHAL | Q9: ='SITTING PLAN'!$D$33 ->  | R9: ='SITTING PLAN'!$E29 -> 160 | S9: ='SITTING PLAN'!$E30 -> 233 | T9: ='SITTING PLAN'!$E31 -> 500 | U9: ='SITTING PLAN'!$E32 -> 433 | V9: ='SITTING PLAN'!$E33 -> 0 | W9: ='SITTING PLAN'!I29 -> 6 | X9: ='SITTING PLAN'!I30 -> 6 | Y9: ='SITTING PLAN'!I31 -> 9 | Z9: ='SITTING PLAN'!I32 -> 3 | AA9: ='SITTING PLAN'!I33 -> 0
B10: 169 | D10: 175 | E10: 512 | F10: 112 | J10: 5 | L10: ='SITTING PLAN'!B34 -> 3 | M10: ='SITTING PLAN'!$D$34 -> GSSS ALNIYAWAS1 | N10: ='SITTING PLAN'!$D$35 -> GSSS KOD | O10: ='SITTING PLAN'!$D$36 -> GSSS ALNIYAWAS1 | P10: ='SITTING PLAN'!$D$37 -> SHAKBHARI | Q10: ='SITTING PLAN'!$D$38 ->  | R10: ='SITTING PLAN'!$E34 -> 166 | S10: ='SITTING PLAN'!$E35 -> 239 | T10: ='SITTING PLAN'!$E36 -> 172 | U10: ='SITTING PLAN'!$E37 -> 509 | V10: ='SITTING PLAN'!$E38 ->  | W10: ='SITTING PLAN'!I34 -> 6 | X10: ='SITTING PLAN'!I35 -> 2 | Y10: ='SITTING PLAN'!I36 -> 9 | Z10: ='SITTING PLAN'!I37 -> 7 | AA10: ='SITTING PLAN'!I38 -> 0
B11: 170 | D11: 176 | E11: 513 | F11: 113 | J11: 6 | L11: ='SITTING PLAN'!B39 -> 0 | M11: ='SITTING PLAN'!$D$39 ->  | N11: ='SITTING PLAN'!$D$40 ->  | O11: ='SITTING PLAN'!$D$41 ->  | P11: ='SITTING PLAN'!$D$42 ->  | Q11: ='SITTING PLAN'!$D$43 ->  | R11: ='SITTING PLAN'!$E39 ->  | S11: ='SITTING PLAN'!$E40 ->  | T11: ='SITTING PLAN'!$E41 ->  | U11: ='SITTING PLAN'!$E42 ->  | V11: ='SITTING PLAN'!$E43 ->  | W11: ='SITTING PLAN'!I39 -> 0 | X11: ='SITTING PLAN'!I40 -> 0 | Y11: ='SITTING PLAN'!I41 -> 0 | Z11: ='SITTING PLAN'!I42 -> 0 | AA11: ='SITTING PLAN'!I43 -> 0
B12: 171 | D12: 177 | E12: 514 | F12: 114 | J12: 7 | L12: ='SITTING PLAN'!B44 -> 0 | M12: ='SITTING PLAN'!$D$44 ->  | N12: ='SITTING PLAN'!$D$45 ->  | O12: ='SITTING PLAN'!$D$46 ->  | P12: ='SITTING PLAN'!$D$47 ->  | Q12: ='SITTING PLAN'!$D$48 ->  | R12: ='SITTING PLAN'!$E44 ->  | S12: ='SITTING PLAN'!$E45 ->  | T12: ='SITTING PLAN'!$E46 ->  | U12: ='SITTING PLAN'!$E47 ->  | V12: ='SITTING PLAN'!$E48 ->  | W12: ='SITTING PLAN'!I44 -> 0 | X12: ='SITTING PLAN'!I45 -> 0 | Y12: ='SITTING PLAN'!I46 -> 0 | Z12: ='SITTING PLAN'!I47 -> 0 | AA12: ='SITTING PLAN'!I48 -> 0
D13: 178 | E13: 515 | F13: 115 | J13: 8 | L13: ='SITTING PLAN'!B49 -> 0 | M13: ='SITTING PLAN'!$D$49 ->  | N13: ='SITTING PLAN'!$D$50 ->  | O13: ='SITTING PLAN'!$D$51 ->  | P13: ='SITTING PLAN'!$D$52 ->  | Q13: ='SITTING PLAN'!$D$53 ->  | R13: ='SITTING PLAN'!$E49 ->  | S13: ='SITTING PLAN'!$E50 ->  | T13: ='SITTING PLAN'!$E51 ->  | U13: ='SITTING PLAN'!$E52 ->  | V13: ='SITTING PLAN'!$E53 ->  | W13: ='SITTING PLAN'!I49 -> 0 | X13: ='SITTING PLAN'!I50 -> 0 | Y13: ='SITTING PLAN'!I51 -> 0 | Z13: ='SITTING PLAN'!I52 -> 0 | AA13: ='SITTING PLAN'!I53 -> 0
D14: 179 | F14: 116 | J14: 9 | L14: ='SITTING PLAN'!B54 -> 0 | M14: ='SITTING PLAN'!$D$54 ->  | N14: ='SITTING PLAN'!$D$55 ->  | O14: ='SITTING PLAN'!$D$56 ->  | P14: ='SITTING PLAN'!$D$57 ->  | Q14: ='SITTING PLAN'!$D$58 ->  | R14: ='SITTING PLAN'!$E54 ->  | S14: ='SITTING PLAN'!$E55 ->  | T14: ='SITTING PLAN'!$E56 ->  | U14: ='SITTING PLAN'!$E57 ->  | V14: ='SITTING PLAN'!$E58 ->  | W14: ='SITTING PLAN'!I54 -> 0 | X14: ='SITTING PLAN'!I55 -> 0 | Y14: ='SITTING PLAN'!I56 -> 0 | Z14: ='SITTING PLAN'!I57 -> 0 | AA14: ='SITTING PLAN'!I58 -> 0
D15: 180 | F15: 117 | J15: 10 | L15: ='SITTING PLAN'!B59 -> 0 | M15: ='SITTING PLAN'!$D$59 ->  | N15: ='SITTING PLAN'!$D$60 ->  | O15: ='SITTING PLAN'!$D$61 ->  | P15: ='SITTING PLAN'!$D$62 ->  | Q15: ='SITTING PLAN'!$D$63 ->  | R15: ='SITTING PLAN'!$E59 ->  | S15: ='SITTING PLAN'!$E60 ->  | T15: ='SITTING PLAN'!$E61 ->  | U15: ='SITTING PLAN'!$E62 ->  | V15: ='SITTING PLAN'!$E63 ->  | W15: ='SITTING PLAN'!I59 -> 0 | X15: ='SITTING PLAN'!I60 -> 0 | Y15: ='SITTING PLAN'!I61 -> 0 | Z15: ='SITTING PLAN'!I62 -> 0 | AA15: ='SITTING PLAN'!I63 -> 0
J16: 11 | L16: ='SITTING PLAN'!B64 -> 0 | M16: ='SITTING PLAN'!$D$64 ->  | N16: ='SITTING PLAN'!$D$65 ->  | O16: ='SITTING PLAN'!$D$66 ->  | P16: ='SITTING PLAN'!$D$67 ->  | Q16: ='SITTING PLAN'!$D$68 ->  | R16: ='SITTING PLAN'!$E64 ->  | S16: ='SITTING PLAN'!$E65 ->  | T16: ='SITTING PLAN'!$E66 ->  | U16: ='SITTING PLAN'!$E67 ->  | V16: ='SITTING PLAN'!$E68 ->  | W16: ='SITTING PLAN'!I64 -> 0 | X16: ='SITTING PLAN'!I65 -> 0 | Y16: ='SITTING PLAN'!I66 -> 0 | Z16: ='SITTING PLAN'!I67 -> 0 | AA16: ='SITTING PLAN'!I68 -> 0
J17: 12 | L17: ='SITTING PLAN'!B69 -> 0 | M17: ='SITTING PLAN'!$D$69 ->  | N17: ='SITTING PLAN'!$D$70 ->  | O17: ='SITTING PLAN'!$D$71 ->  | P17: ='SITTING PLAN'!$D$72 ->  | Q17: ='SITTING PLAN'!$D$73 ->  | R17: ='SITTING PLAN'!$E69 ->  | S17: ='SITTING PLAN'!$E70 ->  | T17: ='SITTING PLAN'!$E71 ->  | U17: ='SITTING PLAN'!$E72 ->  | V17: ='SITTING PLAN'!$E73 ->  | W17: ='SITTING PLAN'!I69 -> 0 | X17: ='SITTING PLAN'!I70 -> 0 | Y17: ='SITTING PLAN'!I71 -> 0 | Z17: ='SITTING PLAN'!I72 -> 0 | AA17: ='SITTING PLAN'!I73 -> 0
J18: 13 | L18: ='SITTING PLAN'!B74 -> 0 | M18: ='SITTING PLAN'!$D$74 ->  | N18: ='SITTING PLAN'!$D$75 ->  | O18: ='SITTING PLAN'!$D$76 ->  | P18: ='SITTING PLAN'!$D$77 ->  | Q18: ='SITTING PLAN'!$D$78 ->  | R18: ='SITTING PLAN'!$E74 ->  | S18: ='SITTING PLAN'!$E75 ->  | T18: ='SITTING PLAN'!$E76 ->  | U18: ='SITTING PLAN'!$E77 ->  | V18: ='SITTING PLAN'!$E78 ->  | W18: ='SITTING PLAN'!I74 -> 0 | X18: ='SITTING PLAN'!I75 -> 0 | Y18: ='SITTING PLAN'!I76 -> 0 | Z18: ='SITTING PLAN'!I77 -> 0 | AA18: ='SITTING PLAN'!I78 -> 0
J19: 14 | L19: ='SITTING PLAN'!B79 -> 0 | M19: ='SITTING PLAN'!$D$79 ->  | N19: ='SITTING PLAN'!$D$80 ->  | O19: ='SITTING PLAN'!$D$81 ->  | P19: ='SITTING PLAN'!$D$82 ->  | Q19: ='SITTING PLAN'!$D$83 ->  | R19: ='SITTING PLAN'!$E79 ->  | S19: ='SITTING PLAN'!$E80 ->  | T19: ='SITTING PLAN'!$E81 ->  | U19: ='SITTING PLAN'!$E82 ->  | V19: ='SITTING PLAN'!$E83 ->  | W19: ='SITTING PLAN'!I79 -> 0 | X19: ='SITTING PLAN'!I80 -> 0 | Y19: ='SITTING PLAN'!I81 -> 0 | Z19: ='SITTING PLAN'!I82 -> 0 | AA19: ='SITTING PLAN'!I83 -> 0
J20: 15 | L20: 15
J21: 16
J22: 17
J23: 18
J24: 19
B25: NAME OF SCHOOL | C25: ROLL NO | E25: NSO | F25: TOTAL | J25: 20
B26: =B6 -> GSSS ALNIYAWAS1 | C26: =VLOOKUP($D$4,$L$5:$W$21,7,0) -> 166 | D26: =IF(C26=" "," ",C26+F26)-1 -> 171 | E26: 0 | F26: =VLOOKUP($D$4,TIME1,12,0) -> 6
B27: =C6 -> GSSS KOD | C27: =VLOOKUP($D$4,$L$5:$W$21,8,0) -> 239 | D27: =IF(C27=" "," ",C27+F27)-1 -> 240 | E27: 0 | F27: =VLOOKUP($D$4,TIME1,13,0) -> 2
B28: =D6 -> GSSS ALNIYAWAS1 | C28: =VLOOKUP($D$4,$L$5:$W$21,9,0) -> 172 | D28: 180 | E28: 0 | F28: =VLOOKUP($D$4,TIME1,14,0) -> 9
B29: =E6 -> SHAKBHARI | C29: =VLOOKUP($D$4,$L$5:$W$21,10,0) -> 509 | D29: 515 | E29: 0 | F29: =VLOOKUP($D$4,TIME1,15,0) -> 7
B30: =F6 ->  | C30: =VLOOKUP($D$4,$L$5:$W$21,11,0) ->  | E30: 0 | F30: =VLOOKUP($D$4,TIME1,16,0) -> 0
D31: TOTAL STUDENTS | F31: =SUM(F26:F30) -> 24

Sheet AC ROLL FOR BANK
B2: =MASTER!B2 -> परीक्षा केन्द्र का नाम | D2: =MASTER!D2 -> jktdh; mPp ek/;fed fo|ky; vkyfu;kokl ftyk& ukXkkSj
C3: =MASTER!B7 -> परीक्षा का प्रकार व वर्ष | D3: =MASTER!D7 -> उच्च माध्यमिक परीक्षा | E3: =MASTER!G7 -> 2021 | F3: =MASTER!B6 -> बोर्ड परीक्षा केंद्र क्रमांक | H3: =MASTER!D6 -> 119050
C4: बोर्ड परीक्षा भुगतान प्रपत्र
B5: S.NO. | C5: NAME OF EMPLOYEE | D5: BOARD DUTY | E5: NAME OF BANK | F5: IFSC CODE | G5: ACOUNT NO | H5: AMOUNT
B6: 1 | C6: VIJAY KUMAR PRAJAPAT | D6: CS | E6: PNB | F6: SBIN0031098 | G6: 51062650196 | H6: 3160
B7: 2 | C7: VIJAY KUMAR PRAJAPAT | D7: ACS | E7: SBI RIYAN BARI | F7: SBIN0031099 | G7: 51062650196 | H7: 720
B8: 3 | C8: VIJAY KUMAR PRAJAPAT | D8: INVIGILATOR | E8: SBI SURAJGARH | F8: SBIN0031100 | G8: 51062650196 | H8: 1760
B9: 4 | C9: VIJAY KUMAR PRAJAPAT | D9: INVIGILATOR | E9: SBI MERTA ROAD | F9: SBIN0031101 | G9: 51062650196 | H9: 990
B10: 5 | C10: VIJAY KUMAR PRAJAPAT | D10: INVIGILATOR | E10: SBI MAKHUPURA AJMER | F10: SBIN0031102 | G10: 51062650196 | H10: 970
B11: 6 | C11: VIJAY KUMAR PRAJAPAT | D11: INVIGILATOR | E11: SBI LOHAKHAN AJMER | F11: SBIN0031103 | G11: 51062650196 | H11: 450
B12: 7 | C12: VIJAY KUMAR PRAJAPAT | D12: INVIGILATOR | E12: SBI VAISHALI NAGAR AJMER | F12: SBIN0031104 | G12: 51062650196 | H12: 630
B13: 8 | C13: VIJAY KUMAR PRAJAPAT | D13: INVIGILATOR | E13: SBI THANWLA | F13: SBIN0031105 | G13: 51062650196 | H13: 900
B14: 9 | C14: VIJAY KUMAR PRAJAPAT | D14: EXAM INCHARGE | E14: SBI RIYAN BARI | F14: SBIN0031106 | G14: 51062650196 | H14: 7276
B15: 10 | C15: VIJAY KUMAR PRAJAPAT | D15: INVIGILATOR | E15: SBI RIYAN BARI | F15: SBIN0031107 | G15: 51062650196 | H15: 1080
B16: 11 | C16: VIJAY KUMAR PRAJAPAT | D16: INVIGILATOR | E16: SBI RIYAN BARI | F16: SBIN0031108 | G16: 51062650196 | H16: 720
B17: 12 | C17: VIJAY KUMAR PRAJAPAT | D17: INVIGILATOR | E17: SBI RIYAN BARI | F17: SBIN0031109 | G17: 51062650196 | H17: 720
B18: 13 | C18: VIJAY KUMAR PRAJAPAT | D18: INVIGILATOR | E18: SBI RIYAN BARI | F18: SBIN0031110 | G18: 51062650196 | H18: 540
B19: 14 | C19: VIJAY KUMAR PRAJAPAT | D19: INVIGILATOR | E19: SBI THANWLA | F19: SBIN0031111 | G19: 51062650196 | H19: 90
B20: 15 | C20: VIJAY KUMAR PRAJAPAT | D20: INVIGILATOR | E20: SBI THANWLA | F20: SBIN0031112 | G20: 51062650196 | H20: 180
B21: 16 | C21: VIJAY KUMAR PRAJAPAT | D21: INVIGILATOR | E21: SBI RIYAN BARI | F21: SBIN0031113 | G21: 51062650196 | H21: 90
B22: 17 | C22: VIJAY KUMAR PRAJAPAT | D22: INVIGILATOR | E22: SBI MERTA ROAD | F22: SBIN0031114 | G22: 51062650196 | H22: 1080
B23: 18 | C23: VIJAY KUMAR PRAJAPAT | D23: INVIGILATOR | E23: SBI MAYAPURA KOTA | F23: SBIN0031115 | G23: 51062650196 | H23: 720
B24: 19 | C24: VIJAY KUMAR PRAJAPAT | D24: INVIGILATOR | E24: SBI HINDOLI BUNDI | F24: SBIN0031116 | G24: 51062650196 | H24: 900
B25: 20 | C25: VIJAY KUMAR PRAJAPAT | D25: INVIGILATOR | E25: SBI RIYAN BARI | F25: SBIN0031117 | G25: 51062650196 | H25: 90
B26: 21 | C26: VIJAY KUMAR PRAJAPAT | D26: INVIGILATOR | E26: SBI MERTA CITY | F26: SBIN0031118 | G26: 51062650196 | H26: 270
B27: 22 | C27: VIJAY KUMAR PRAJAPAT | D27: INVIGILATOR | E27: SBI THANWLA | F27: SBIN0031119 | G27: 51062650196 | H27: 500
B28: 23 | C28: VIJAY KUMAR PRAJAPAT | D28: INVIGILATOR | E28: SBI PUSHKAR | F28: SBIN0031120 | G28: 51062650196 | H28: 630
B29: 24 | C29: VIJAY KUMAR PRAJAPAT | D29: INVIGILATOR | E29: SBI RIYAN BARI | F29: SBIN0031121 | G29: 51062650196 | H29: 360
B30: 25 | C30: VIJAY KUMAR PRAJAPAT | D30: INVIGILATOR | E30: SBI MERTA CITY | F30: SBIN0031122 | G30: 51062650196 | H30: 180
B31: 26 | C31: VIJAY KUMAR PRAJAPAT | D31: INVIGILATOR | E31: SBI MERTA CITY | F31: SBIN0031123 | G31: 51062650196 | H31: 180
B32: 27 | C32: VIJAY KUMAR PRAJAPAT | F32: SBIN0031124 | G32: 51062650196 | H32: 500
B33: 28 | C33: VIJAY KUMAR PRAJAPAT | D33: PEON | E33: SBI PISANGAN | F33: SBIN0031125 | G33: 51062650196 | H33: 3460
B34: 29 | C34: VIJAY KUMAR PRAJAPAT | D34: AAO | E34: SBI MAIN BRANCH AJMER | F34: SBIN0031126 | G34: 51062650196 | H34: 910
B35: 30 | C35: VIJAY KUMAR PRAJAPAT | D35: SR.ASSISTANT | E35: SBI PISANGAN | F35: SBIN0031127 | G35: 51062650196 | H35: 920
G36: TOTAL | H36: =SUBTOTAL(109,[AMOUNT]) -> 30976
C39: हस्ताक्षर | F39: हस्ताक्षर
C40: परीक्षा प्रभारी | F40: केन्द्राधीक्षक/प्रधानाचार्य

Sheet Sheet1
